fUSD/lending_fUSD_20260226
["ID","MTS","AMOUNT","RATE_DAILY","PERIOD"]
[406736857,1772131832349,-427.0,9.584e-05,2]
[406736858,1772131832359,-151.0,9.595e-05,2]
[406736859,1772131832368,-154.74390454,9.595e-05,2]
[406736860,1772131832378,-500.0,9.597e-05,2]
[406736861,1772131832387,-500.0,9.597e-05,2]
[406736862,1772131832397,-500.0,9.597e-05,2]
[406736863,1772131832406,-290.27427833,9.597e-05,2]
[406736907,1772131837911,-209.72572167,9.597e-05,2]
[406736908,1772131837920,-98.20385371,9.597e-05,2]
[406736909,1772131837932,-61.32752797,9.597e-05,2]
[406736910,1772131837941,-29432.66338733,9.598e-05,2]
[406736911,1772131837965,-422.58467,9.598e-05,2]
[406736912,1772131837976,-1402120.66297285,9.598e-05,2]
[406736913,1772131838020,-15837.27592586,9.598e-05,2]
[406736914,1772131838076,-3424.37572502,9.598e-05,2]
[406736915,1772131838089,-754.07848955,9.598e-05,2]
[406736916,1772131838183,-332.99999985,9.598e-05,2]
[406737014,1772131840409,-523.52762199,9.598e-05,2]
[406737015,1772131840463,-547151.83120755,9.598e-05,2]
[406737016,1772131840473,-4133.1798,9.599e-05,2]
[406737017,1772131840482,-11803.9657,9.599e-05,2]
[406737018,1772131840496,-2500.0,9.599e-05,2]
[406737019,1772131840505,-282.0,9.603e-05,2]
[406737020,1772131840514,-250.0,9.667e-05,2]
[406737021,1772131840524,-191.02,9.698e-05,2]
[406737022,1772131840534,-177.22,9.699e-05,2]
[406737023,1772131840543,-700.0,9.7e-05,3]
[406737024,1772131840552,-1884.0,9.705e-05,2]
[406737025,1772131840563,-1911.0,9.725e-05,2]
[406737026,1772131840572,-1018.0,9.744e-05,2]
[406737027,1772131840582,-1908.0,9.763e-05,2]
[406737028,1772131840592,-150.0,9.773e-05,2]
[406737029,1772131840601,-1272.0,9.783e-05,2]
[406737030,1772131840611,-1500.0,9.8e-05,3]
[406737031,1772131840620,-196.32932638,9.8e-05,2]
[406737032,1772131840631,-17612.78111794,9.8e-05,2]
[406737033,1772131840641,-2471.91533706,9.8e-05,2]
[406737034,1772131840651,-1000.0,9.8e-05,2]
[406737035,1772131840660,-285.3136,9.8e-05,2]
[406737036,1772131840669,-1237585.5213,9.8e-05,2]
[406737037,1772131840678,-12103.7502,9.8e-05,2]
[406737039,1772131840690,-2200.0,9.9e-05,3]
[406737040,1772131840700,-195.0,9.93e-05,2]
[406737041,1772131840709,-500.0,9.954e-05,2]
[406737042,1772131840719,-1571.0,9.954e-05,2]
[406737043,1772131840730,-191.03776369,9.972e-05,2]
[406737044,1772131840740,-310.0,9.974e-05,2]
[406737045,1772131840749,-217.0,9.994e-05,2]
[406737046,1772131840759,-500.0,0.0001,2]
[406737047,1772131840768,-500.0,0.0001,2]
[406737048,1772131840778,-151.0,0.0001,2]
[406737049,1772131840788,-500.0,0.0001,2]
[406737050,1772131840797,-151.0,0.0001,2]
[406737051,1772131840807,-500.0,0.0001,2]
[406737052,1772131840816,-151.0,0.0001,2]
[406737053,1772131840826,-500.0,0.0001,2]
[406737054,1772131840836,-151.0,0.0001,2]
[406737055,1772131840845,-500.0,0.0001,2]
[406737056,1772131840855,-151.0,0.0001,2]
[406737057,1772131840864,-500.0,0.0001,2]
[406737058,1772131840873,-151.0,0.0001,2]
[406737059,1772131840885,-500.0,0.0001,2]
[406737060,1772131840895,-151.0,0.0001,2]
[406737061,1772131840905,-500.0,0.0001,2]
[406737062,1772131840914,-151.0,0.0001,2]
[406737063,1772131840924,-500.0,0.0001,2]
[406737064,1772131840934,-151.0,0.0001,2]
[406737065,1772131840944,-500.0,0.0001,2]
[406737066,1772131840954,-500.0,0.0001,2]
[406737067,1772131840964,-151.0,0.0001,2]
[406737068,1772131840973,-500.0,0.0001,2]
[406737069,1772131840983,-500.0,0.0001,2]
[406737070,1772131840992,-500.0,0.0001,2]
[406737071,1772131841002,-500.0,0.0001,2]
[406737072,1772131841012,-151.0,0.0001,2]
[406737073,1772131841021,-553.9571256,0.0001,2]
[406737074,1772131841031,-151.0,0.0001,2]
[406737075,1772131841041,-151.0,0.0001,2]
[406737076,1772131841056,-200.0,0.0001,2]
[406737077,1772131841066,-151.0,0.0001,2]
[406737078,1772131841076,-151.0,0.0001,2]
[406737079,1772131841086,-151.0,0.0001,2]
[406737080,1772131841097,-151.0,0.0001,2]
[406737081,1772131841107,-151.0,0.0001,2]
[406737082,1772131841117,-151.0,0.0001,2]
[406737083,1772131841128,-151.0,0.0001,2]
[406737084,1772131841138,-151.0,0.0001,2]
[406737085,1772131841147,-151.0,0.0001,2]
[406737086,1772131841157,-151.0,0.0001,2]
[406737087,1772131841167,-151.0,0.0001,2]
[406737088,1772131841177,-151.0,0.0001,2]
[406737089,1772131841186,-3000.0,0.0001,3]
[406737090,1772131841196,-151.0,0.0001,2]
[406737091,1772131841205,-151.0,0.0001,2]
[406737092,1772131841216,-151.0,0.0001,2]
[406737093,1772131841226,-151.0,0.0001,2]
[406737094,1772131841235,-151.0,0.0001,2]
[406737095,1772131841245,-151.0,0.0001,2]
[406737096,1772131841254,-151.0,0.0001,2]
[406737097,1772131841263,-151.0,0.0001,2]
[406737098,1772131841273,-151.0,0.0001,2]
[406737099,1772131841283,-151.0,0.0001,2]
[406737100,1772131841292,-151.0,0.0001,2]
[406737101,1772131841302,-151.0,0.0001,2]
[406737102,1772131841312,-151.0,0.0001,2]
[406737103,1772131841322,-151.0,0.0001,2]
[406737104,1772131841332,-151.0,0.0001,2]
[406737105,1772131841341,-151.0,0.0001,2]
[406737106,1772131841351,-740.4702443,0.0001,2]
[406737107,1772131841361,-951.66495317,0.0001,2]
[406737108,1772131841370,-1000.0,0.00010056,2]
[406737109,1772131841379,-300.0,0.00010213,2]
[406737110,1772131841389,-1631.0,0.00010221,2]
[406737111,1772131841398,-500.0,0.00010228,2]
[406737112,1772131841409,-500.0,0.000103,2]
[406737113,1772131841418,-507.0718689,0.000103,2]
[406737114,1772131841427,-500.0,0.000103,2]
[406737115,1772131841437,-500.0,0.000103,2]
[406737116,1772131841446,-502.3554838,0.000103,2]
[406737117,1772131841456,-500.0,0.000103,2]
[406737118,1772131841466,-500.0,0.000103,2]
[406737119,1772131841475,-500.0,0.000103,2]
[406737120,1772131841485,-500.0,0.000103,2]
[406737121,1772131841494,-500.0,0.000103,2]
[406737122,1772131841504,-500.0,0.000103,2]
[406737123,1772131841514,-874.11423967,0.000103,2]
[406737124,1772131841524,-500.0,0.000103,2]
[406737125,1772131841534,-500.0,0.000103,2]
[406737126,1772131841543,-600.0,0.000103,2]
[406737127,1772131841553,-500.0,0.000103,2]
[406737128,1772131841563,-600.0,0.000103,2]
[406737129,1772131841574,-500.0,0.000103,2]
[406737130,1772131841584,-600.0,0.000103,2]
[406737131,1772131841594,-500.0,0.000103,2]
[406737132,1772131841604,-600.0,0.000103,2]
[406737133,1772131841615,-500.0,0.000103,2]
[406737134,1772131841624,-600.0,0.000103,2]
[406737135,1772131841633,-500.0,0.000103,2]
[406737136,1772131841642,-600.0,0.000103,2]
[406737137,1772131841652,-500.0,0.000103,2]
[406737138,1772131841662,-600.0,0.000103,2]
[406737139,1772131841672,-600.0,0.000103,2]
[406737140,1772131841682,-500.0,0.000103,2]
[406737141,1772131841692,-500.0,0.000103,2]
[406737142,1772131841701,-600.0,0.000103,2]
[406737143,1772131841711,-725.96679237,0.000103,2]
[406737144,1772131841721,-600.0,0.000103,2]
[406737145,1772131841731,-600.0,0.000103,2]
[406737146,1772131841741,-600.0,0.000103,2]
[406737147,1772131841751,-500.0,0.000103,2]
[406737148,1772131841761,-600.0,0.000103,2]
[406737149,1772131841771,-500.0,0.000103,2]
[406737150,1772131841781,-557.04324665,0.000103,2]
[406737151,1772131841790,-500.0,0.000103,2]
[406737152,1772131841799,-500.0,0.000103,2]
[406737153,1772131841808,-500.0,0.000103,2]
[406737154,1772131841817,-1071.31934016,0.000103,2]
[406737155,1772131841827,-500.0,0.000103,2]
[406737156,1772131841836,-860.86736991,0.000103,2]
[406737157,1772131841845,-500.0,0.000103,2]
[406737158,1772131841853,-500.0,0.000103,2]
[406737159,1772131841862,-526.98589059,0.000103,2]
[406737160,1772131841871,-500.0,0.000103,2]
[406737161,1772131841881,-594.38701915,0.000103,2]
[406737162,1772131841890,-500.0,0.000103,2]
[406737163,1772131841899,-500.0,0.000103,2]
[406737164,1772131841909,-500.0,0.000103,2]
[406737165,1772131841918,-500.0,0.000103,2]
[406737166,1772131841928,-500.0,0.000103,2]
[406737167,1772131841936,-700.0,0.000103,2]
[406737168,1772131841945,-500.0,0.000103,2]
[406737169,1772131841955,-700.0,0.000103,2]
[406737170,1772131841964,-500.0,0.000103,2]
[406737171,1772131841973,-500.0,0.000103,2]
[406737172,1772131841982,-700.0,0.000103,2]
[406737173,1772131841991,-500.0,0.000103,2]
[406737174,1772131842000,-500.0,0.000103,2]
[406737175,1772131842009,-700.0,0.000103,2]
[406737176,1772131842019,-500.0,0.000103,2]
[406737177,1772131842036,-500.0,0.000103,2]
[406737178,1772131842051,-700.0,0.000103,2]
[406737179,1772131842061,-500.0,0.000103,2]
[406737180,1772131842071,-500.0,0.000103,2]
[406737181,1772131842080,-500.0,0.000103,2]
[406737182,1772131842091,-700.0,0.000103,2]
[406737183,1772131842101,-500.0,0.000103,2]
[406737184,1772131842111,-500.0,0.000103,2]
[406737185,1772131842122,-500.0,0.000103,2]
[406737186,1772131842131,-949.25545367,0.000103,2]
[406737187,1772131842141,-510.5569704,0.000103,2]
[406737188,1772131842151,-500.0,0.000103,2]
[406737189,1772131842160,-700.0,0.000103,2]
[406737190,1772131842170,-500.0,0.000103,2]
[406737191,1772131842181,-700.0,0.000103,2]
[406737192,1772131842190,-500.0,0.000103,2]
[406737193,1772131842200,-700.0,0.000103,2]
[406737194,1772131842210,-700.0,0.000103,2]
[406737195,1772131842219,-700.0,0.000103,2]
[406737196,1772131842229,-700.0,0.000103,2]
[406737197,1772131842239,-700.0,0.000103,2]
[406737198,1772131842249,-1197.24899589,0.000103,2]
[406737199,1772131842259,-500.0,0.000103,2]
[406737200,1772131842269,-200.0,0.00010311,2]
[406737201,1772131842278,-502.2030619,0.00010829,2]
[406737202,1772131842289,-500.53906536,0.00010829,2]
[406737203,1772131842299,-500.0,0.00010829,2]
[406737204,1772131842309,-500.0,0.00010829,2]
[406737205,1772131842319,-500.28462042,0.00010829,2]
[406737206,1772131842328,-158.6599059,0.00010829,2]
[406737207,1772131842338,-500.0,0.00010829,2]
[406737208,1772131842347,-501.35484447,0.00010829,2]
[406737209,1772131842357,-500.0,0.00010829,2]
[406737210,1772131842366,-500.72325527,0.00010829,2]
[406737211,1772131842376,-500.0,0.00010829,2]
[406737212,1772131842385,-500.0,0.00010829,2]
[406737213,1772131842395,-3700.0,0.000109,3]
[406737214,1772131842405,-672.362394,0.00010942,2]
[406737215,1772131842416,-166.66,0.00010959,2]
[406737216,1772131842426,-150.0,0.00010959,2]
[406737217,1772131842436,-166.66,0.00011068,2]
[406737218,1772131842446,-137550.62068451,0.0001107,2]
[406737219,1772131842456,-951.66495317,0.00011073,2]
[406737220,1772131842465,-2299.7074498,0.00011083,2]
[406737221,1772131842475,-160245.6915705,0.00011083,2]
[406737222,1772131842484,-4380.1573697,0.00011083,2]
[406737227,1772131842662,-305295.42674018,0.00011083,2]
[406737433,1772131845803,-429.72840633,0.00011083,2]
[406737434,1772131845859,-1047.31015504,0.00011083,2]
[406737435,1772131846077,-1569.41645663,0.00011083,2]
[406737436,1772131968346,500.0,8.8e-05,3]
[406737437,1772131970448,1100.0,8.9e-05,3]
[406737438,1772131972542,1600.0,9e-05,3]
[406737454,1772132419831,1852.45,5.021e-05,2]
[406737455,1772132420050,1852.45,5.238e-05,2]
[406737456,1772132420251,1852.45,5.454e-05,2]
[406737457,1772132420464,1838.78042085,5.67e-05,2]
[406737458,1772132420488,13.66957915,5.67e-05,2]
[406737459,1772132420707,1852.45,5.886e-05,2]
[406737460,1772132420910,1852.45,6.103e-05,2]
[406737461,1772132421114,1852.45,6.319e-05,2]
[406737481,1772132829674,500.0,8.7e-05,3]
[406737482,1772132831763,1100.0,8.8e-05,3]
[406737483,1772132833869,1700.0,8.9e-05,3]
[406737484,1772132835959,2300.0,9e-05,3]
[406737487,1772132939810,-147.55,6.535e-05,2]
[406737488,1772132939826,-1704.9,6.535e-05,2]
[406737489,1772132939836,-147.55,6.643e-05,2]
[406737503,1772133031954,-152.45,6.643e-05,2]
[406737505,1772133031965,-1852.45,6.751e-05,2]
[406737507,1772133031975,-300.0,6.881e-05,2]
[406737509,1772133031985,-300.0,6.881e-05,2]
[406737510,1772133031995,-300.0,6.881e-05,2]
[406737511,1772133032007,-1794.73136772,6.968e-05,2]
[406737512,1772133032019,-57.71863228,6.968e-05,2]
[406737513,1772133032029,-1200.0,7.183e-05,2]
[406737514,1772133032039,-1852.45,7.184e-05,2]
[406737515,1772133032049,-250.0,7.189e-05,2]
[406737516,1772133032062,-300.0,7.189e-05,2]
[406737517,1772133032072,-250.0,7.308e-05,2]
[406737518,1772133032083,-1852.45,7.4e-05,2]
[406737519,1772133032093,-449.44,7.459e-05,2]
[406737520,1772133032102,-419.0,7.478e-05,2]
[406737521,1772133032112,-232.0,7.493e-05,2]
[406737522,1772133032122,-188.0,7.5e-05,2]
[406737523,1772133032131,-369.0,7.515e-05,2]
[406737524,1772133032141,-436.0,7.534e-05,2]
[406737525,1772133032151,-162.0,7.549e-05,2]
[406737526,1772133032161,-772.91,7.559e-05,2]
[406737527,1772133032171,-349.0,7.564e-05,2]
[406737528,1772133032181,-209.0,7.579e-05,2]
[406737529,1772133032190,-1852.45,7.616e-05,2]
[406737530,1772133032201,-439.0,7.704e-05,2]
[406737531,1772133032210,-265.0,7.716e-05,2]
[406737532,1772133032220,-183.0,7.72e-05,2]
[406737533,1772133032230,-250.0,7.781e-05,2]
[406737534,1772133032240,-1852.45,7.833e-05,2]
[406737535,1772133032251,-260.0,7.856e-05,2]
[406737536,1772133032261,-1680.0,7.901e-05,2]
[406737537,1772133032270,-765.0,7.987e-05,2]
[406737538,1772133032280,-697.0,8.003e-05,2]
[406737539,1772133032290,-1851.0,8.019e-05,2]
[406737540,1772133032299,-150.0,8.019e-05,2]
[406737541,1772133032309,-1852.45,8.049e-05,2]
[406737542,1772133032319,-4441.92737,8.178e-05,2]
[406737544,1772133032329,-337.464424,8.219e-05,2]
[406737545,1772133032338,-334.483343,8.219e-05,2]
[406737546,1772133032348,-1852.45,8.265e-05,2]
[406737547,1772133032358,-1038.0,8.295e-05,2]
[406737548,1772133032368,-562.0,8.311e-05,2]
[406737549,1772133032382,-461.0,8.328e-05,2]
[406737550,1772133032391,-617.0,8.344e-05,2]
[406737551,1772133032401,-1858.0,8.361e-05,2]
[406737552,1772133032411,-1780.0,8.377e-05,2]
[406737553,1772133032421,-449.44,8.392e-05,2]
[406737554,1772133032431,-1852.45,8.481e-05,2]
[406737555,1772133032440,-1102.0,8.691e-05,2]
[406737556,1772133032461,-1852.45,8.698e-05,2]
[406737557,1772133032474,-255.0,8.821e-05,2]
[406737558,1772133032487,-1852.45,8.914e-05,2]
[406737559,1772133032497,-177.22,8.914e-05,2]
[406737560,1772133032508,-627.156268,8.929e-05,2]
[406737561,1772133032518,-946.44474214,8.999e-05,2]
[406737562,1772133032527,-1852.45,9.13e-05,2]
[406737563,1772133032538,-27852.71475811,9.242e-05,2]
[406737564,1772133032552,-10048.75524189,9.242e-05,2]
[406737565,1772133032562,-153.09966258,9.25e-05,2]
[406737566,1772133032572,-150.0,9.25e-05,2]
[406737567,1772133032582,-150.0,9.25e-05,2]
[406737568,1772133032591,-150.0,9.25e-05,2]
[406737569,1772133032602,-150.0,9.25e-05,2]
[406737570,1772133032612,-150.0,9.25e-05,2]
[406737571,1772133032621,-150.0,9.25e-05,2]
[406737572,1772133032631,-150.0,9.25e-05,2]
[406737573,1772133032641,-150.0,9.25e-05,2]
[406737574,1772133032651,-150.0,9.25e-05,2]
[406737575,1772133032661,-150.0,9.25e-05,2]
[406737576,1772133032671,-150.0,9.25e-05,2]
[406737577,1772133032681,-150.0,9.25e-05,2]
[406737578,1772133032690,-150.0,9.25e-05,2]
[406737579,1772133032700,-150.0,9.25e-05,2]
[406737580,1772133032711,-150.0,9.25e-05,2]
[406737581,1772133032720,-150.0,9.25e-05,2]
[406737582,1772133032731,-4133.1798,9.297e-05,2]
[406737583,1772133032741,-11803.9657,9.297e-05,2]
[406737584,1772133032753,-2500.0,9.297e-05,2]
[406737585,1772133032762,-5838.76853022,9.297e-05,2]
[406737586,1772133032773,-449.44,9.324e-05,2]
[406737587,1772133032782,-7049.0,9.397e-05,2]
[406737588,1772133032792,-500.0,9.404e-05,2]
[406737589,1772133032802,-150.0,9.471e-05,2]
[406737591,1772133032811,-500.0,9.497e-05,2]
[406737592,1772133032820,-500.0,9.497e-05,2]
[406737593,1772133032830,-500.0,9.497e-05,2]
[406737594,1772133032839,-500.0,9.497e-05,2]
[406737595,1772133032849,-500.0,9.497e-05,2]
[406737596,1772133032859,-500.0,9.497e-05,2]
[406737597,1772133032869,-500.0,9.497e-05,2]
[406737598,1772133032878,-500.0,9.497e-05,2]
[406737599,1772133032888,-500.0,9.497e-05,2]
[406737600,1772133032897,-500.0,9.497e-05,2]
[406737601,1772133032907,-500.0,9.497e-05,2]
[406737602,1772133032916,-500.0,9.497e-05,2]
[406737603,1772133032926,-500.0,9.497e-05,2]
[406737604,1772133032937,-500.0,9.497e-05,2]
[406737605,1772133032947,-500.0,9.497e-05,2]
[406737606,1772133032957,-484.92052207,9.497e-05,2]
[406737607,1772133032966,-500.0,9.497e-05,2]
[406737608,1772133032976,-500.0,9.497e-05,2]
[406737609,1772133032985,-500.0,9.497e-05,2]
[406737610,1772133032995,-500.0,9.497e-05,2]
[406737611,1772133033005,-500.0,9.497e-05,2]
[406737612,1772133033019,-500.0,9.497e-05,2]
[406737613,1772133033029,-500.0,9.497e-05,2]
[406737614,1772133033039,-500.0,9.497e-05,2]
[406737615,1772133033049,-500.0,9.497e-05,2]
[406737616,1772133033059,-500.0,9.497e-05,2]
[406737617,1772133033069,-500.0,9.497e-05,2]
[406737618,1772133033079,-500.0,9.497e-05,2]
[406737619,1772133033089,-500.0,9.497e-05,2]
[406737620,1772133033099,-500.0,9.497e-05,2]
[406737621,1772133033109,-500.0,9.497e-05,2]
[406737622,1772133033119,-500.0,9.497e-05,2]
[406737623,1772133033129,-500.0,9.497e-05,2]
[406737624,1772133033138,-500.0,9.497e-05,2]
[406737625,1772133033148,-500.0,9.497e-05,2]
[406737626,1772133033157,-500.0,9.497e-05,2]
[406737627,1772133033167,-500.0,9.497e-05,2]
[406737628,1772133033177,-500.0,9.497e-05,2]
[406737629,1772133033187,-500.0,9.497e-05,2]
[406737630,1772133033197,-500.0,9.497e-05,2]
[406737631,1772133033205,-500.0,9.497e-05,2]
[406737632,1772133033215,-500.0,9.497e-05,2]
[406737633,1772133033225,-500.0,9.497e-05,2]
[406737634,1772133033235,-500.0,9.497e-05,2]
[406737635,1772133033244,-500.0,9.497e-05,2]
[406737636,1772133033255,-500.0,9.497e-05,2]
[406737637,1772133033264,-500.0,9.497e-05,2]
[406737638,1772133033275,-500.0,9.497e-05,2]
[406737639,1772133033285,-500.0,9.497e-05,2]
[406737640,1772133033296,-500.0,9.497e-05,2]
[406737641,1772133033306,-349.99999999,9.497e-05,2]
[406737642,1772133033315,-50850.98292385,9.498e-05,2]
[406737643,1772133033334,-554.20348043,9.498e-05,2]
[406737644,1772133033346,-3076.09408268,9.498e-05,2]
[406737645,1772133033363,-1096.51621776,9.498e-05,2]
[406737646,1772133033378,-401.79,9.498e-05,2]
[406737647,1772133033390,-651.48729921,9.498e-05,2]
[406737648,1772133033409,-585215.22170325,9.498e-05,2]
[406737649,1772133033421,-7489.24071338,9.498e-05,2]
[406737650,1772133033432,-6576.13123256,9.498e-05,2]
[406737654,1772133038050,-500.0,8.821e-05,2]
[406737655,1772133038060,-10532.23390717,9.498e-05,2]
[406737657,1772133038261,-16949.99999999,9.498e-05,2]
[406737674,1772133040525,-295.365,9.498e-05,2]
[406737675,1772133040583,-553896.25473972,9.498e-05,2]
[406737676,1772133040593,-12103.7502,9.498e-05,2]
[406737677,1772133040603,-10000.0,9.7e-05,2]
[406737678,1772133040613,-35354.06,9.758e-05,2]
[406737679,1772133040767,-205.0,9.8e-05,2]
[406737680,1772133040782,-31110.78105374,9.95e-05,2]
[406737681,1772133040792,-1225.25,9.988e-05,2]
[406737682,1772133040802,-3726.06481656,0.0001,2]
[406737683,1772133040811,-151.0,0.0001,2]
[406737684,1772133040821,-151.0,0.0001,2]
[406737685,1772133040831,-151.0,0.0001,2]
[406737686,1772133040840,-151.0,0.0001,2]
[406737687,1772133040849,-200.0,0.0001,2]
[406737688,1772133040858,-151.0,0.0001,2]
[406737689,1772133040868,-151.0,0.0001,2]
[406737690,1772133040877,-151.0,0.0001,2]
[406737691,1772133040886,-151.0,0.0001,2]
[406737692,1772133040896,-151.0,0.0001,2]
[406737693,1772133040906,-151.0,0.0001,2]
[406737694,1772133040915,-151.0,0.0001,2]
[406737695,1772133040925,-151.0,0.0001,2]
[406737696,1772133040934,-151.0,0.0001,2]
[406737697,1772133040943,-151.0,0.0001,2]
[406737698,1772133040953,-151.0,0.0001,2]
[406737699,1772133040962,-151.0,0.0001,2]
[406737700,1772133040972,-151.0,0.0001,2]
[406737701,1772133040982,-151.0,0.0001,2]
[406737703,1772133040991,-151.0,0.0001,2]
[406737704,1772133041000,-151.0,0.0001,2]
[406737705,1772133041011,-500.0,0.0001,2]
[406737706,1772133041021,-151.0,0.0001,2]
[406737707,1772133041030,-500.0,0.0001,2]
[406737708,1772133041039,-151.0,0.0001,2]
[406737709,1772133041048,-500.0,0.0001,2]
[406737710,1772133041057,-151.0,0.0001,2]
[406737711,1772133041066,-500.0,0.0001,2]
[406737712,1772133041076,-151.0,0.0001,2]
[406737713,1772133041086,-500.0,0.0001,2]
[406737714,1772133041097,-151.0,0.0001,2]
[406737715,1772133041107,-151.0,0.0001,2]
[406737716,1772133041116,-500.0,0.0001,2]
[406737717,1772133041126,-151.0,0.0001,2]
[406737718,1772133041136,-151.0,0.0001,2]
[406737719,1772133041145,-500.0,0.0001,2]
[406737720,1772133041154,-151.0,0.0001,2]
[406737721,1772133041164,-151.0,0.0001,2]
[406737722,1772133041174,-500.0,0.0001,2]
[406737723,1772133041183,-151.0,0.0001,2]
[406737724,1772133041193,-151.0,0.0001,2]
[406737725,1772133041203,-500.0,0.0001,2]
[406737726,1772133041212,-151.0,0.0001,2]
[406737727,1772133041222,-151.0,0.0001,2]
[406737728,1772133041231,-500.0,0.0001,2]
[406737729,1772133041241,-151.0,0.0001,2]
[406737730,1772133041250,-151.0,0.0001,2]
[406737731,1772133041260,-500.0,0.0001,2]
[406737732,1772133041269,-151.0,0.0001,2]
[406737733,1772133041279,-151.0,0.0001,2]
[406737734,1772133041289,-500.0,0.0001,2]
[406737735,1772133041298,-151.0,0.0001,2]
[406737736,1772133041308,-500.0,0.0001,2]
[406737737,1772133041317,-151.0,0.0001,2]
[406737738,1772133041326,-500.0,0.0001,2]
[406737739,1772133041336,-151.0,0.0001,2]
[406737740,1772133041346,-500.0,0.0001,2]
[406737741,1772133041355,-151.0,0.0001,2]
[406737742,1772133041365,-500.0,0.0001,2]
[406737743,1772133041376,-151.0,0.0001,2]
[406737744,1772133041392,-553.9571256,0.0001,2]
[406737745,1772133041401,-151.0,0.0001,2]
[406737746,1772133041411,-151.0,0.0001,2]
[406737747,1772133041420,-151.0,0.0001,2]
[406737748,1772133041432,-151.0,0.0001,2]
[406737749,1772133041442,-151.0,0.0001,2]
[406737750,1772133041453,-151.0,0.0001,2]
[406737751,1772133041462,-151.0,0.0001,2]
[406737752,1772133041472,-151.0,0.0001,2]
[406737753,1772133041481,-740.4702443,0.0001,2]
[406737754,1772133041491,-951.66495317,0.0001,2]
[406737755,1772133041501,-449.44,0.00010256,2]
[406737756,1772133041511,-557.04324665,0.000103,2]
[406737757,1772133041520,-500.0,0.000103,2]
[406737758,1772133041529,-500.0,0.000103,2]
[406737759,1772133041539,-500.0,0.000103,2]
[406737760,1772133041548,-500.0,0.000103,2]
[406737761,1772133041557,-500.0,0.000103,2]
[406737762,1772133041567,-949.25545367,0.000103,2]
[406737763,1772133041576,-500.0,0.000103,2]
[406737764,1772133041585,-500.0,0.000103,2]
[406737765,1772133041595,-500.0,0.000103,2]
[406737766,1772133041604,-500.0,0.000103,2]
[406737767,1772133041613,-500.0,0.000103,2]
[406737768,1772133041622,-500.0,0.000103,2]
[406737769,1772133041631,-860.86736991,0.000103,2]
[406737770,1772133041640,-594.38701915,0.000103,2]
[406737771,1772133041650,-510.5569704,0.000103,2]
[406737772,1772133041659,-507.0718689,0.000103,2]
[406737773,1772133041668,-500.0,0.000103,2]
[406737774,1772133041678,-500.0,0.000103,2]
[406737775,1772133041687,-500.0,0.000103,2]
[406737776,1772133041696,-500.0,0.000103,2]
[406737777,1772133041705,-500.0,0.000103,2]
[406737778,1772133041714,-500.0,0.000103,2]
[406737779,1772133041723,-500.0,0.000103,2]
[406737780,1772133041733,-500.0,0.000103,2]
[406737781,1772133041742,-725.96679237,0.000103,2]